Workbook

Sheet Sheet1
A1: 2026年第二季度能耗汇总情况表
A2: 燃料类型 | B2: 车辆数（辆） | C2: 总吨位（吨） | D2: 平均吨位（吨） | E2: 总行程（公里） | F2: 载货里程（公里） | G2: 空驶里程（公里） | H2: 货运量（吨） | I2: 货物周转量（吨公里） | J2: 平均运距（公里） | K2: 燃料消耗量 (升/千克/立方米/千瓦时) | L2: 百公里单耗 升（千克/立方米/千瓦时/等）/百公里） | M2: 周转量单耗（千克标准煤/百吨公里）
A3: 柴油车 | B3: 1141 | C3: 31875.8 | D3: =C3/B3 -> 27.9 | E3: 9040463 | F3: 6514626 | G3: 2525837 | H3: 1014462 | I3: 160613459 | J3: =I3/H3 -> 158.3 | K3: 2874369 | L3: =K3/E3*100 -> 31.79 | M3: =K3/I3*100*0.86*1.4571 -> 2.2
A4: 汽油车 | B4: 1 | C4: 1.5 | D4: 1.5 | E4: 2575 | F4: 1275 | G4: 1300 | H4: 123 | I4: 1915 | J4: 15.6 | K4: 309 | L4: 12.00 | M4: =K4/I4*100*0.73*1.4714 -> 17.3
A5: 液化天然气车 | B5: 66 | C5: 2364.2 | D5: 35.8 | E5: 750362 | F5: 551692 | G5: 198670 | H5: 43275 | I5: 15760408 | J5: 364.2 | K5: 243631 | L5: 32.47 | M5: =K5/I5*100*1.7572 -> 2.7
A6: 压缩天然气车
A7: 纯电动车 | B7: 74 | C7: 2367.6 | D7: 32.0 | E7: 652199 | F7: 411658 | G7: 240541 | H7: 195208 | I7: 13807714 | J7: 70.7 | K7: 846684 | L7: 129.82 | M7: =K7/I7*100*0.1229 -> 0.8
A8: 燃料电池车 | B8: 2 | C8: 9 | D8: 4.5 | E8: 7196 | F8: 6476 | G8: 720 | H8: 540 | I8: 29144 | J8: 54.0 | K8: 475 | L8: =K8/E8*100*0.3329*12.1951 -> 26.80 | M8: =K8/I8*100*0.3329*12.1951 -> 6.6
A9: 合计 | B9: =SUM(B3:B8) -> 1284 | C9: 36618.1 | D9: 28.5 | E9: 10452795 | F9: 7485727 | G9: 2967068 | H9: 1253608 | I9: 190212640 | J9: 151.7
